[Event "III Duchamp Open 2019"]
[Site "Rio de Janeiro"]
[Date "2019.12.08"]
[Round "2.8"]
[White "Abrantes, Tiago Garrido"]
[Black "Galego, Luis"]
[Result "0-1"]
[ECO "A40"]
[WhiteElo "2159"]
[BlackElo "2483"]
[Annotator "ChessBase"]
[PlyCount "66"]
[EventDate "2019.12.07"]
[EventType "swiss"]
[EventCountry "BRA"]
[SourceTitle "playchess.com"]
[Source "ChessBase"]
[SourceQuality "1"]
[TimeControl "40/5400+30:1800+30"]

1. d4 {[%emt 0:00:18]} Nf6 {[%emt 0:00:00]} 2. c4 {[%emt 0:00:13]} e6 {[%emt 0:00:00]} 3. g3 {[%emt 0:00:10]} Bb4+ {[%emt 0:01:01]} 4. Bd2 {[%emt 0:00:10]} Bxd2+ {[%emt 0:02:20]} 5. Qxd2 {[%emt 0:08:26]} d5 {[%emt 0:04:29]} 6. Bg2 {[%emt 0:00:18]} O-O {[%emt 0:02:42]} 7. Nf3 {[%emt 0:00:31]} Nbd7 {[%emt 0:01:03]} 8. O-O {[%emt 0:01:49]} Qe7 {[%emt 0:03:04]} 9. b3 {[%emt 0:04:29]} dxc4 {[%emt 0:02:55]} 10. bxc4 {[%emt 0:00:38]} e5 {[%emt 0:01:11]} 11. Nc3 {[%emt 0:03:28]} exd4 {[%emt 0:07:44]} 12. Qxd4 {[%emt 0:04:19]} c6 {[%emt 0:00:52]} 13. e4 {[%emt 0:00:47]} Nc5 {[%emt 0:00:17]} 14. e5 {[%emt 0:02:12]} Nfd7 {[%emt 0:00:11]} 15. Rad1 {[%emt 0:06:06]} Nb6 {[%emt 0:03:56]} 16. Ne4 {[%emt 0:27:36]} Nxe4 {[%emt 0:01:32]} 17. Qxe4 {[%emt 0:01:16]} Be6 {[%emt 0:00:22]} 18. Rd4 {[%emt 0:03:57]} Rad8 {[%emt 0:06:06]} 19. Rfd1 {[%emt 0:00:42]} Nxc4 {[%emt 0:06:43]} 20. h4 {[%emt 0:02:41]} Bd5 {[%emt 0:01:48]} 21. Rxd5 {[%emt 0:02:44]} Rxd5 {[%emt 0:01:41]} 22. Rxd5 {[%emt 0:00:16]} cxd5 {[%emt 0:00:04]} 23. Qxd5 {[%emt 0:00:13]} Rc8 {[%emt 0:01:10]} 24. Qe4 {[%emt 0:05:37]} Rc5 {[%emt 0:02:04]} 25. Ng5 {[%emt 0:01:03]} Qxe5 {[%emt 0:05:58]} 26. Qxb7 {[%emt 0:03:28]} Nd6 {[%emt 0:04:30]} 27. Qxa7 {[%emt 0:00:41]} h6 {[%emt 0:00:36]} 28. Nf3 {[%emt 0:01:04]} Rc1+ {[%emt 0:00:11]} 29. Kh2 {[%emt 0:00:08]} Qc5 {[%emt 0:00:25]} 30. Qe7 {[%emt 0:01:26]} Rc2 {[%emt 0:01:14]} 31. Ne1 {[%emt 0:00:51]} Rxf2 {[%emt 0:01:17]} 32. Nd3 {[%emt 0:00:28]} Rxg2+ {[%emt 0:00:05]} 33. Kxg2 {[%emt 0:00:08]} Qd5+ {[%emt 0:00:03]} 0-1

[Event "III Duchamp Open 2019"]
[Site "Rio de Janeiro"]
[Date "2019.12.08"]
[Round "2.9"]
[White "Perdomo, Leandro"]
[Black "Moura, Eduardo Eugenio Chav"]
[Result "1-0"]
[ECO "A41"]
[WhiteElo "2474"]
[BlackElo "2098"]
[Annotator "ChessBase"]
[PlyCount "57"]
[EventDate "2019.12.07"]
[EventType "swiss"]
[EventCountry "BRA"]
[SourceTitle "playchess.com"]
[Source "ChessBase"]
[SourceQuality "1"]
[TimeControl "40/5400+30:1800+30"]

1. d4 {[%emt 0:00:00]} d6 {[%emt 0:00:00]} 2. c4 {[%emt 0:00:00]} e5 {[%emt 0:00:00]} 3. Nf3 {[%emt 0:00:00]} Nd7 {[%emt 0:00:06]} 4. Nc3 {[%emt 0:00:00]} Ngf6 {[%emt 0:00:18]} 5. Bg5 {[%emt 0:00:00]} c6 {[%emt 0:01:40]} 6. e3 {[%emt 0:02:39]} Qa5 {[%emt 0:07:30]} 7. Qd2 {[%emt 0:17:06]} Be7 {[%emt 0:04:13]} 8. Bd3 {[%emt 0:01:00]} O-O {[%emt 0:03:27]} 9. O-O {[%emt 0:00:20]} Re8 {[%emt 0:18:02]} 10. Rfd1 {[%emt 0:23:22]} Bd8 {[%emt 0:19:38]} 11. Qc2 {[%emt 0:06:03]} Nf8 {[%emt 0:05:39]} 12. h3 {[%emt 0:03:03]} Ng6 {[%emt 0:07:22]} 13. d5 {[%emt 0:22:24]} c5 {[%emt 0:03:41]} 14. a3 {[%emt 0:04:15]} Nd7 {[%emt 0:09:31]} 15. Nb5 {[%emt 0:03:18]} Qb6 {[%emt 0:02:33]} 16. a4 {[%emt 0:02:14]} a5 {[%emt 0:00:19]} 17. Ra3 {[%emt 0:01:44]} Ndf8 {[%emt 0:02:20]} 18. Bxd8 {[%emt 0:07:10]} Qxd8 {[%emt 0:00:12]} 19. Nd2 {[%emt 0:00:26]} Ra6 {[%emt 0:05:32]} 20. Nf1 {[%emt 0:03:23]} Qe7 {[%emt 0:02:57]} 21. Ng3 {[%emt 0:00:56]} Nh4 {[%emt 0:00:50]} 22. Kh2 {[%emt 0:00:41]} g6 {[%emt 0:02:25]} 23. f4 {[%emt 0:00:02]} exf4 {[%emt 0:02:35]} 24. exf4 {[%emt 0:00:02]} f5 {[%emt 0:00:37]} 25. Rd2 {[%emt 0:00:56]} Qd8 {[%emt 0:00:30]} 26. Re2 {[%emt 0:00:13]} Bd7 {[%emt 0:00:17]} 27. Rxe8 {[%emt 0:00:32]} Bxe8 {[%emt 0:00:02]} 28. Qf2 {[%emt 0:01:06]} Ra8 {[%emt 0:01:06]} 29. Ne2 {[%emt 0:00:07]} 1-0

[Event "III Duchamp Open 2019"]
[Site "Rio de Janeiro"]
[Date "2019.12.08"]
[Round "2.10"]
[White "Pirola, Claudionor Alcides L"]
[Black "Matsuura, Everaldo"]
[Result "1/2-1/2"]
[ECO "B74"]
[WhiteElo "2106"]
[BlackElo "2448"]
[Annotator "NA RC"]
[PlyCount "77"]
[EventDate "2019.12.07"]
[EventType "swiss"]
[EventCountry "BRA"]
[SourceTitle "playchess.com"]
[Source "ChessBase"]
[SourceQuality "1"]
[TimeControl "40/5400+30:1800+30"]

1. e4 {[%emt 0:00:00]} c5 {[%emt 0:13:41]} 2. Nc3 {[%emt 0:00:00]} Nc6 {[%emt 0:00:53]} 3. Nf3 {[%emt 0:02:46]} g6 {[%emt 0:01:07]} 4. d4 {[%emt 0:00:49]} cxd4 {[%emt 0:00:11]} 5. Nxd4 {[%emt 0:00:04]} Bg7 {[%emt 0:00:18]} 6. Be3 {[%emt 0:01:41]} Nf6 {[%emt 0:00:13]} 7. Nb3 {[%emt 0:00:33]} O-O {[%emt 0:00:39]} 8. Be2 {[%emt 0:00:20]} d6 {[%emt 0:00:52]} 9. O-O {[%emt 0:00:19]} Be6 {[%emt 0:00:49]} 10. f4 {[%emt 0:02:14]} Qc8 {[%emt 0:00:43]} 11. Kh1 {[%emt 0:04:16]} Bg4 {[%emt 0:00:54]} 12. Bg1 {[%emt 0:08:00]} Rb8 {[%emt 0:04:55]} 13. Nd5 {[%emt 0:03:33]} Bxe2 {[%emt 0:01:04]} 14. Qxe2 {[%emt 0:00:09]} Qe6 {[%emt 0:02:24]} 15. Nxf6+ {[%emt 0:07:29]} Bxf6 {[%emt 0:00:22]} 16. c3 {[%emt 0:00:14]} b5 {[%emt 0:03:26]} 17. Qf3 {[%emt 0:24:38]} Rbc8 {[%emt 0:18:47]} 18. e5 Bg7 {[%emt 0:00:10]} 19. exd6 {[%emt 0:06:13]} Qxd6 {[%emt 0:00:30]} 20. Nc5 {[%emt 0:00:50]} Qc7 {[%emt 0:02:58]} 21. Rad1 {[%emt 0:03:32]} Rcd8 {[%emt 0:01:24]} 22. a4 {[%emt 0:06:57]} bxa4 {[%emt 0:03:25]} 23. Nxa4 {[%emt 0:01:05]} e6 {[%emt 0:07:45]} 24. Nc5 {[%emt 0:00:48]} Ne7 {[%emt 0:07:38]} 25. Ra1 {[%emt 0:06:19]} Nd5 {[%emt 0:08:50]} 26. Ra3 {[%emt 0:08:54]} a5 {[%emt 0:02:24]} 27. Rfa1 {[%emt 0:04:14]} Qxf4 {[%emt 0:09:46]} 28. Rxa5 {[%emt 0:01:38]} Qxf3 {[%emt 0:01:46]} 29. gxf3 {[%emt 0:00:01]} Nxc3 {[%emt 0:00:33]} 30. bxc3 {[%emt 0:02:21]} Bxc3 {[%emt 0:00:08]} 31. Ne4 {[%emt 0:00:13]} Bxa5 {[%emt 0:00:57]} 32. Rxa5 {[%emt 0:00:07]} Rd3 {[%emt 0:02:29]} 33. Kg2 {[%emt 0:00:45]} Rb8 {[%emt 0:00:41]} 34. Bc5 {[%emt 0:01:27]} Rdd8 {[%emt 0:03:42]} 35. Ra7 {[%emt 0:00:27]} Ra8 {[%emt 0:00:17]} 36. Rb7 {[%emt 0:00:39]} Rab8 {[%emt 0:00:26]} 37. Ra7 {[%emt 0:00:06]} Ra8 {[%emt 0:00:28]} 38. Rb7 {[%emt 0:00:03]} Rab8 {[%emt 0:00:14]} 39. Ra7 {[%emt 0:00:08]} 1/2-1/2

[Event "III Duchamp Open 2019"]
[Site "Rio de Janeiro"]
[Date "2019.12.08"]
[Round "2.11"]
[White "Molina, Roberto Junio Brito"]
[Black "Andrade, Roberto Luiz Costa"]
[Result "1-0"]
[ECO "A43"]
[WhiteElo "2448"]
[BlackElo "2087"]
[Annotator "NA"]
[PlyCount "59"]
[EventDate "2019.12.07"]
[EventType "swiss"]
[EventCountry "BRA"]
[SourceTitle "playchess.com"]
[Source "ChessBase"]
[SourceQuality "1"]
[TimeControl "40/5400+30:1800+30"]

1. d4 {[%emt 0:09:04]} c5 {[%emt 0:00:41]} 2. d5 {[%emt 0:00:03]} Nf6 3. Nc3 {[%emt 0:00:08]} d6 {[%emt 0:02:12]} 4. e4 {[%emt 0:01:49]} g6 {[%emt 0:00:25]} 5. Be2 {[%emt 0:03:09]} Bg7 {[%emt 0:00:15]} 6. Nf3 {[%emt 0:00:04]} O-O {[%emt 0:00:27]} 7. O-O {[%emt 0:00:04]} Na6 {[%emt 0:01:32]} 8. Nd2 {[%emt 0:00:42]} Nc7 {[%emt 0:01:12]} 9. a4 {[%emt 0:00:24]} Rb8 {[%emt 0:02:06]} 10. Nc4 {[%emt 0:02:52]} b6 {[%emt 0:02:06]} 11. Bf4 {[%emt 0:02:44]} Nd7 {[%emt 0:02:49]} 12. Qd2 {[%emt 0:02:55]} Ne5 {[%emt 0:05:38]} 13. Bh6 {[%emt 0:04:47]} Nxc4 {[%emt 0:04:37]} 14. Bxc4 {[%emt 0:00:37]} a6 {[%emt 0:01:30]} 15. Bxg7 {[%emt 0:03:31]} Kxg7 {[%emt 0:00:03]} 16. f4 {[%emt 0:03:01]} b5 {[%emt 0:06:54]} 17. axb5 {[%emt 0:02:28]} axb5 {[%emt 0:00:47]} 18. Be2 {[%emt 0:00:19]} b4 {[%emt 0:01:08]} 19. Nd1 {[%emt 0:00:17]} Nb5 {[%emt 0:02:40]} 20. c3 {[%emt 0:08:53]} Qc7 {[%emt 0:07:03]} 21. Ne3 {[%emt 0:00:21]} Bd7 {[%emt 0:04:30]} 22. Bxb5 {[%emt 0:08:08]} Bxb5 {[%emt 0:00:38]} 23. c4 {[%emt 0:00:05]} Bd7 24. Rae1 {[%emt 0:00:56]} Ra8 {[%emt 0:14:23]} 25. h4 {[%emt 0:13:09]} Ra2 {[%emt 0:08:06]} 26. f5 {[%emt 0:03:12]} gxf5 {[%emt 0:15:26]} 27. exf5 {[%emt 0:01:09]} Rg8 {[%emt 0:02:24]} 28. Ng4 {[%emt 0:01:58]} Be8 {[%emt 0:04:35]} 29. Rxe7 {[%emt 0:00:26]} Qd8 {[%emt 0:02:51]} 30. Qh6+ {[%emt 0:01:14]} 1-0

[Event "III Duchamp Open 2019"]
[Site "Rio de Janeiro"]
[Date "2019.12.08"]
[Round "2.12"]
[White "Labussiere, Yago"]
[Black "Zambrana, Oswaldo"]
[Result "1/2-1/2"]
[ECO "A56"]
[WhiteElo "2091"]
[BlackElo "2445"]
[Annotator "NA"]
[PlyCount "120"]
[EventDate "2019.12.07"]
[EventType "swiss"]
[EventCountry "BRA"]
[SourceTitle "playchess.com"]
[Source "ChessBase"]
[SourceQuality "1"]
[TimeControl "40/5400+30:1800+30"]

1. d4 {[%emt 0:00:00]} Nf6 {[%emt 0:00:00]} 2. c4 {[%emt 0:00:36]} c5 {[%emt 0:00:02]} 3. Nf3 {[%emt 0:01:16]} e6 {[%emt 0:03:25]} 4. e3 {[%emt 0:04:15]} b6 {[%emt 0:01:29]} 5. Nc3 {[%emt 0:02:33]} Be7 {[%emt 0:00:15]} 6. d5 {[%emt 0:04:08]} exd5 {[%emt 0:04:36]} 7. cxd5 {[%emt 0:00:10]} d6 {[%emt 0:00:13]} 8. Bb5+ {[%emt 0:14:22]} Bd7 {[%emt 0:03:07]} 9. a4 {[%emt 0:02:14]} a6 {[%emt 0:00:03]} 10. Be2 {[%emt 0:06:43]} Bg4 {[%emt 0:11:55]} 11. Nd2 {[%emt 0:04:07]} Bxe2 {[%emt 0:00:57]} 12. Qxe2 {[%emt 0:00:08]} O-O {[%emt 0:00:15]} 13. O-O {[%emt 0:04:23]} Nbd7 {[%emt 0:07:36]} 14. e4 {[%emt 0:03:58]} Re8 {[%emt 0:00:30]} 15. Nc4 {[%emt 0:04:51]} Bf8 {[%emt 0:00:52]} 16. f3 {[%emt 0:02:15]} Ne5 {[%emt 0:04:50]} 17. Na3 {[%emt 0:05:10]} Qc7 {[%emt 0:01:37]} 18. b3 {[%emt 0:04:12]} c4 {[%emt 0:04:22]} 19. bxc4 {[%emt 0:23:37]} Rec8 {[%emt 0:01:36]} 20. Bd2 {[%emt 0:03:16]} Nxc4 {[%emt 0:00:31]} 21. Nxc4 {[%emt 0:00:32]} Qxc4 {[%emt 0:03:38]} 22. Rfc1 {[%emt 0:00:38]} Nd7 {[%emt 0:02:38]} 23. Kf1 {[%emt 0:02:20]} g6 {[%emt 0:02:20]} 24. Nd1 {[%emt 0:01:14]} Qxe2+ {[%emt 0:06:25]} 25. Kxe2 {[%emt 0:00:02]} Rxc1 {[%emt 0:01:40]} 26. Rxc1 {[%emt 0:04:52]} Nc5 {[%emt 0:00:07]} 27. Rc4 {[%emt 0:00:15]} Re8 {[%emt 0:04:24]} 28. Be3 f5 {[%emt 0:02:37]} 29. Nf2 {[%emt 0:01:48]} Bg7 {[%emt 0:01:49]} 30. Rb4 {[%emt 0:00:30]} Rb8 {[%emt 0:01:19]} 31. Bf4 {[%emt 0:00:31]} Bf8 {[%emt 0:03:10]} 32. Nd3 {[%emt 0:00:27]} fxe4 {[%emt 0:02:39]} 33. fxe4 {[%emt 0:00:24]} Re8 {[%emt 0:09:36]} 34. Ke3 {[%emt 0:00:20]} Nd7 {[%emt 0:00:01]} 35. Rc4 {[%emt 0:00:48]} Nf6 {[%emt 0:00:02]} 36. Kf3 {[%emt 0:00:18]} b5 {[%emt 0:07:29]} 37. axb5 {[%emt 0:00:16]} axb5 {[%emt 0:00:02]} 38. Rb4 {[%emt 0:00:20]} Rb8 {[%emt 0:00:02]} 39. Nc1 {[%emt 0:01:06]} Ne8 {[%emt 0:00:03]} 40. Ne2 {[%emt 0:00:30]} Nc7 {[%emt 0:00:19]} 41. Nd4 {[%emt 0:08:19]} Rb7 {[%emt 0:00:03]} 42. Ke3 {[%emt 0:06:23]} Kf7 {[%emt 0:00:02]} 43. Nc6 {[%emt 0:03:02]} Ke8 {[%emt 0:00:44]} 44. Rb1 {[%emt 0:04:59]} Rb6 {[%emt 0:04:46]} 45. Nb4 {[%emt 0:01:19]} Rb8 {[%emt 0:01:45]} 46. Rc1 {[%emt 0:02:23]} Kd7 {[%emt 0:00:48]} 47. Rxc7+ {[%emt 0:06:06]} Kxc7 {[%emt 0:00:03]} 48. Na6+ {[%emt 0:00:06]} Kb7 {[%emt 0:01:20]} 49. Nxb8 {[%emt 0:00:04]} Kxb8 {[%emt 0:00:12]} 50. Kd3 {[%emt 0:01:00]} Kb7 {[%emt 0:00:09]} 51. Kc3 {[%emt 0:01:48]} Kb6 {[%emt 0:00:19]} 52. Kb4 {[%emt 0:00:07]} Be7 {[%emt 0:00:27]} 53. h3 {[%emt 0:00:55]} h5 {[%emt 0:01:44]} 54. Be3+ {[%emt 0:00:28]} Ka6 {[%emt 0:00:03]} 55. Bf4 {[%emt 0:00:16]} Kb6 {[%emt 0:00:51]} 56. Bg3 {[%emt 0:00:46]} Ka6 {[%emt 0:01:31]} 57. Bf4 {[%emt 0:00:16]} Kb6 {[%emt 0:00:08]} 58. Bh2 {[%emt 0:00:41]} Ka6 {[%emt 0:00:09]} 59. Bg3 {[%emt 0:00:32]} Kb6 {[%emt 0:01:11]} 60. Bh2 {[%emt 0:00:00]} Ka6 {[%emt 0:00:14]} 1/2-1/2

[Event "III Duchamp Open 2019"]
[Site "Rio de Janeiro"]
[Date "2019.12.08"]
[Round "2.13"]
[White "Roselli Mailhe, Bernardo"]
[Black "Urquiza, Marcello de Albuquer"]
[Result "1-0"]
[ECO "D28"]
[WhiteElo "2442"]
[BlackElo "2075"]
[Annotator "NA"]
[PlyCount "25"]
[EventDate "2019.12.07"]
[EventType "swiss"]
[EventCountry "BRA"]
[SourceTitle "playchess.com"]
[Source "ChessBase"]
[SourceQuality "1"]
[TimeControl "40/5400+30:1800+30"]

1. d4 {[%emt 0:00:21]} d5 {[%emt 0:00:00]} 2. c4 {[%emt 0:00:18]} dxc4 {[%emt 0:00:00]} 3. Nf3 {[%emt 0:00:06]} Nf6 {[%emt 0:00:00]} 4. e3 {[%emt 0:00:04]} e6 {[%emt 0:00:00]} 5. Bxc4 {[%emt 0:00:23]} c5 {[%emt 0:00:24]} 6. O-O {[%emt 0:00:22]} a6 {[%emt 0:00:11]} 7. Qe2 {[%emt 0:00:20]} b5 {[%emt 0:00:57]} 8. Bd3 {[%emt 0:00:06]} cxd4 {[%emt 0:02:43]} 9. exd4 {[%emt 0:02:13]} Be7 {[%emt 0:00:15]} 10. a4 {[%emt 0:06:27]} bxa4 {[%emt 0:00:23]} 11. Nc3 {[%emt 0:03:15]} O-O {[%emt 0:07:04]} 12. Bg5 {[%emt 0:00:35]} Nc6 {[%emt 0:02:34]} 13. Bxf6 {[%emt 0:02:06]} 1-0

[Event "III Duchamp Open 2019"]
[Site "Rio de Janeiro"]
[Date "2019.12.08"]
[Round "2.14"]
[White "Torella, Rodolfo"]
[Black "Von Buelow, Georg"]
[Result "1-0"]
[ECO "B55"]
[WhiteElo "2085"]
[BlackElo "2363"]
[Annotator "NA"]
[PlyCount "35"]
[EventDate "2019.12.07"]
[EventType "swiss"]
[EventCountry "BRA"]
[SourceTitle "playchess.com"]
[Source "ChessBase"]
[SourceQuality "1"]
[TimeControl "40/5400+30:1800+30"]

1. e4 {[%emt 0:00:00]} c5 {[%emt 0:00:00]} 2. Nf3 {[%emt 0:00:07]} d6 {[%emt 0:00:21]} 3. d4 {[%emt 0:01:10]} cxd4 {[%emt 0:00:08]} 4. Nxd4 {[%emt 0:00:11]} Nf6 {[%emt 0:00:17]} 5. f3 {[%emt 0:02:52]} e5 {[%emt 0:01:21]} 6. Bb5+ {[%emt 0:01:55]} Nbd7 {[%emt 0:01:24]} 7. Nf5 {[%emt 0:02:02]} a6 {[%emt 0:00:55]} 8. Ba4 {[%emt 0:09:34]} d5 {[%emt 0:03:30]} 9. exd5 {[%emt 0:03:04]} b5 {[%emt 0:00:43]} 10. Bb3 {[%emt 0:00:53]} a5 {[%emt 0:04:00]} 11. a3 {[%emt 0:11:05]} Nc5 {[%emt 0:02:08]} 12. Ne3 {[%emt 0:00:35]} Nxb3 {[%emt 0:01:24]} 13. cxb3 {[%emt 0:00:04]} Bc5 {[%emt 0:04:29]} 14. Nc3 {[%emt 0:05:57]} Ba6 {[%emt 0:03:00]} 15. b4 {[%emt 0:07:15]} axb4 {[%emt 0:02:34]} 16. axb4 {[%emt 0:01:01]} Bxb4 {[%emt 0:03:55]} 17. Qb3 {[%emt 0:00:53]} Bc5 {[%emt 0:03:03]} 18. Rxa6 {[%emt 0:01:28]} 1-0

[Event "III Duchamp Open 2019"]
[Site "Rio de Janeiro"]
[Date "2019.12.08"]
[Round "2.15"]
[White "Limp, Eduardo Thelio"]
[Black "Sobrero, Sebastian"]
[Result "1-0"]
[ECO "B06"]
[WhiteElo "2356"]
[BlackElo "2059"]
[Annotator "NA"]
[PlyCount "77"]
[EventDate "2019.12.07"]
[EventType "swiss"]
[EventCountry "BRA"]
[SourceTitle "playchess.com"]
[Source "ChessBase"]
[SourceQuality "1"]
[TimeControl "40/5400+30:1800+30"]

1. d4 {[%emt 0:00:00]} g6 {[%emt 0:02:18]} 2. e4 {[%emt 0:00:12]} Bg7 {[%emt 0:00:25]} 3. Nf3 {[%emt 0:00:11]} d6 {[%emt 0:03:02]} 4. c3 {[%emt 0:00:35]} Nf6 {[%emt 0:02:46]} 5. Nbd2 {[%emt 0:00:17]} O-O {[%emt 0:04:14]} 6. Be2 {[%emt 0:00:54]} c5 {[%emt 0:02:12]} 7. dxc5 {[%emt 0:04:40]} dxc5 {[%emt 0:00:13]} 8. O-O {[%emt 0:00:09]} Nc6 {[%emt 0:05:13]} 9. Qc2 {[%emt 0:00:12]} Qc7 {[%emt 0:02:00]} 10. a4 {[%emt 0:01:07]} Nh5 {[%emt 0:03:55]} 11. g3 {[%emt 0:00:28]} Bg4 {[%emt 0:06:38]} 12. Nc4 {[%emt 0:03:36]} Rad8 {[%emt 0:05:37]} 13. Ne3 {[%emt 0:11:13]} Bh3 {[%emt 0:02:17]} 14. Re1 {[%emt 0:01:06]} h6 {[%emt 0:00:22]} 15. Nd5 {[%emt 0:07:40]} Qc8 {[%emt 0:00:30]} 16. Nd2 {[%emt 0:01:28]} Bg4 {[%emt 0:07:23]} 17. Nc4 {[%emt 0:01:16]} Bxe2 {[%emt 0:01:28]} 18. Qxe2 {[%emt 0:00:55]} Qh3 {[%emt 0:04:19]} 19. Be3 {[%emt 0:06:43]} e6 {[%emt 0:04:37]} 20. Nf4 {[%emt 0:04:30]} Nxf4 {[%emt 0:00:10]} 21. Bxf4 {[%emt 0:00:15]} e5 {[%emt 0:06:10]} 22. Be3 {[%emt 0:00:38]} b6 {[%emt 0:02:24]} 23. a5 {[%emt 0:00:40]} Rb8 {[%emt 0:01:24]} 24. axb6 {[%emt 0:04:51]} axb6 {[%emt 0:00:08]} 25. Ra6 {[%emt 0:03:23]} f5 {[%emt 0:03:42]} 26. Rxb6 {[%emt 0:05:04]} Rxb6 {[%emt 0:00:36]} 27. Nxb6 {[%emt 0:00:09]} f4 {[%emt 0:03:05]} 28. Bxc5 {[%emt 0:00:10]} Rf7 {[%emt 0:08:01]} 29. Nd5 {[%emt 0:08:56]} Nd8 {[%emt 0:01:17]} 30. Qf1 {[%emt 0:01:09]} Qh5 {[%emt 0:01:51]} 31. Be7 {[%emt 0:04:41]} Ne6 {[%emt 0:03:04]} 32. Qg2 {[%emt 0:01:26]} f3 {[%emt 0:04:49]} 33. g4 {[%emt 0:02:11]} fxg2 {[%emt 0:01:11]} 34. gxh5 {[%emt 0:00:08]} gxh5 {[%emt 0:00:42]} 35. Kxg2 {[%emt 0:00:20]} Nf4+ {[%emt 0:01:27]} 36. Nxf4 {[%emt 0:00:13]} exf4 {[%emt 0:01:57]} 37. Bd6 {[%emt 0:00:16]} Rb7 {[%emt 0:00:56]} 38. Re2 {[%emt 0:00:39]} Rf7 {[%emt 0:00:51]} 39. Kf3 {[%emt 0:00:15]} 1-0

[Event "III Duchamp Open 2019"]
[Site "Rio de Janeiro"]
[Date "2019.12.08"]
[Round "2.16"]
[White "Silva, Kaua Marques"]
[Black "Ambartsumova, Karina"]
[Result "0-1"]
[ECO "B43"]
[WhiteElo "2082"]
[BlackElo "2341"]
[Annotator "NA"]
[PlyCount "32"]
[EventDate "2019.12.07"]
[EventType "swiss"]
[EventCountry "BRA"]
[SourceTitle "playchess.com"]
[Source "ChessBase"]
[SourceQuality "1"]
[TimeControl "40/5400+30:1800+30"]

1. e4 c5 2. Nf3 e6 3. Nc3 a6 4. d4 cxd4 {[%emt 0:02:28]} 5. Nxd4 {[%emt 0:04:30]} b5 {[%emt 0:00:14]} 6. a3 {[%emt 0:01:09]} Bb7 {[%emt 0:02:21]} 7. Bd3 {[%emt 0:07:27]} Qb6 8. Nde2 Nf6 {[%emt 0:05:43]} 9. O-O {[%emt 0:01:46]} Qc7 {[%emt 0:03:57]} 10. h3 {[%emt 0:03:40]} Be7 {[%emt 0:04:32]} 11. Bg5 {[%emt 0:10:42]} d5 {[%emt 0:15:34]} 12. Ng3 {[%emt 0:06:50]} h6 {[%emt 0:04:27]} 13. Bd2 {[%emt 0:05:03]} Nbd7 {[%emt 0:01:04]} 14. Qe2 {[%emt 0:03:04]} O-O {[%emt 0:08:37]} 15. f4 {[%emt 0:03:55]} Nc5 {[%emt 0:02:08]} 16. Rae1 {[%emt 0:02:43]} Rfe8 {[%emt 0:08:14]} 0-1

[Event "III Duchamp Open 2019"]
[Site "Rio de Janeiro"]
[Date "2019.12.08"]
[Round "3.5"]
[White "Rangel, Daniel"]
[Black "Diamant, Andre"]
[Result "1/2-1/2"]
[ECO "A10"]
[WhiteElo "2258"]
[BlackElo "2533"]
[Annotator "RC"]
[PlyCount "78"]
[EventDate "2019.12.07"]
[EventType "swiss"]
[EventCountry "BRA"]
[SourceTitle "playchess.com"]
[Source "ChessBase"]
[SourceQuality "1"]
[TimeControl "40/5400+30:1800+30"]

1. c4 {[%emt 0:00:00]} g6 {[%emt 0:00:00]} 2. g3 {[%emt 0:00:00]} Bg7 {[%emt 0:00:00]} 3. Bg2 {[%emt 0:00:00]} Nf6 {[%emt 0:00:00]} 4. Nc3 {[%emt 0:00:00]} O-O {[%emt 0:00:19]} 5. e4 {[%emt 0:00:04]} d6 {[%emt 0:00:39]} 6. Nge2 {[%emt 0:00:07]} c5 {[%emt 0:00:20]} 7. O-O {[%emt 0:00:15]} Nc6 {[%emt 0:00:05]} 8. d3 {[%emt 0:00:31]} Ne8 {[%emt 0:00:14]} 9. Be3 {[%emt 0:01:04]} Nc7 {[%emt 0:00:05]} 10. d4 {[%emt 0:00:16]} cxd4 {[%emt 0:00:02]} 11. Nxd4 {[%emt 0:00:06]} Ne6 {[%emt 0:00:04]} 12. Nde2 {[%emt 0:00:14]} Nc5 {[%emt 0:02:13]} 13. Rb1 {[%emt 0:04:53]} a5 {[%emt 0:01:32]} 14. Qd2 {[%emt 0:07:12]} a4 {[%emt 0:16:49]} 15. b4 {[%emt 0:17:27]} axb3 {[%emt 0:01:59]} 16. axb3 {[%emt 0:00:06]} Qa5 {[%emt 0:03:20]} 17. e5 {[%emt 0:11:01]} Qd8 {[%emt 0:15:16]} 18. exd6 {[%emt 0:01:44]} exd6 {[%emt 0:00:49]} 19. b4 {[%emt 0:07:27]} Ne6 {[%emt 0:02:33]} 20. Ne4 {[%emt 0:08:31]} Ne5 {[%emt 0:07:12]} 21. Nxd6 {[%emt 0:01:08]} Ng4 {[%emt 0:00:30]} 22. Nxb7 {[%emt 0:05:40]} Qc7 {[%emt 0:01:53]} 23. Nd6 {[%emt 0:04:26]} Nxe3 {[%emt 0:01:08]} 24. Qxe3 {[%emt 0:02:11]} Ra2 {[%emt 0:00:23]} 25. Nxc8 {[%emt 0:03:27]} Rxc8 {[%emt 0:00:27]} 26. c5 {[%emt 0:00:50]} Qe5 {[%emt 0:01:12]} 27. Qxe5 {[%emt 0:01:10]} Bxe5 {[%emt 0:00:02]} 28. Nc1 {[%emt 0:01:10]} Rd2 {[%emt 0:01:43]} 29. Nb3 {[%emt 0:01:29]} Ra2 {[%emt 0:00:03]} 30. c6 {[%emt 0:08:18]} Rb8 {[%emt 0:00:34]} 31. Nc1 {[%emt 0:01:47]} Rc2 {[%emt 0:00:49]} 32. Nd3 {[%emt 0:01:57]} Bd4 {[%emt 0:00:21]} 33. b5 {[%emt 0:03:09]} Rc3 {[%emt 0:01:01]} 34. Nf4 {[%emt 0:01:29]} Nxf4 {[%emt 0:01:34]} 35. gxf4 {[%emt 0:00:02]} Rc2 {[%emt 0:00:06]} 36. Rbc1 {[%emt 0:04:17]} Bxf2+ {[%emt 0:00:19]} 37. Kh1 {[%emt 0:00:01]} Rxc1 {[%emt 0:00:07]} 38. Rxc1 {[%emt 0:00:05]} Bb6 {[%emt 0:00:18]} 39. c7 {[%emt 0:00:16]} Rc8 {[%emt 0:00:04]} 1/2-1/2